bitfinex/quotes_ETHUSD_20250808
["timestamp","ask_amount","ask_price","bid_price","bid_amount"]
[1754669669570,3.943,3960.5,3960.1,1e-08]
[1754669669959,3.943,3960.5,3960.1,0.43090001]
[1754669670138,2.52503267,3960.4,3960.1,1e-08]
[1754669670561,6.93194833,3960.5,3960.1,1e-08]
[1754669670876,0.758431,3960.9,3960.1,0.46190001]
[1754669670877,0.464,3960.9,3960.1,0.46190001]
[1754669671176,0.464,3960.9,3960.2,2.95596985]
[1754669671362,3.943,3961.1,3960.3,2.52501845]
[1754669671563,3.943,3961.1,3960.2,0.8928]
[1754669671747,3.943,3961.1,3960.2,1.28208]
[1754669671951,3.943,3961.1,3960.4,2.52495571]
[1754669672192,3.943,3961.1,3960.4,2.5249394]
[1754669672367,3.943,3961.1,3960.5,2.52487655]
[1754669672751,6.46755327,3961.1,3960.4,2.52498311]
[1754669673166,3.943,3961.1,3960.2,1.28208]
[1754669673454,2.52471836,3960.9,3960.3,3.0]
[1754669673656,3.943,3961.1,3960.3,2.5250611]
[1754669673854,2.5246387,3961.0,3960.3,2.5250611]
[1754669674103,0.9947327,3961.0,3960.3,2.5250611]
[1754669674253,3.943,3961.1,3960.1,3.00000001]
[1754669674575,3.943,3961.1,3960.8,2.52474158]
[1754669675360,3.943,3961.1,3960.8,2.52473495]
[1754669675752,3.943,3961.1,3960.7,2.52478559]
[1754669675957,3.943,3961.1,3960.5,2.95579327]
[1754669676197,3.943,3961.1,3960.5,2.52489327]
[1754669676599,3.943,3961.1,3960.2,0.4309]
[1754669676758,3.943,3961.1,3960.6,2.52486561]
[1754669676953,3.943,3961.1,3960.7,2.52480583]
[1754669677157,3.943,3961.1,3960.6,2.52485235]
[1754669677687,0.464,3961.0,3960.3,0.48348]
[1754669677898,0.93,3961.0,3960.3,0.48348]
[1754669678187,0.1264,3960.9,3960.4,3.0]
[1754669678359,0.1264,3960.9,3960.4,5.52494851]
[1754669678555,0.5924,3960.9,3960.3,0.1264]
[1754669678790,2.52491721,3960.6,3960.1,1e-08]
[1754669678961,6.59331721,3960.6,3960.1,0.12640001]
[1754669679161,0.93,3960.5,3960.1,0.12640001]
[1754669679586,0.1264,3960.3,3960.1,1e-08]
[1754669680519,0.93,3960.2,3960.1,1e-08]
[1754669681220,2.65149174,3960.3,3960.1,1e-08]
[1754669681221,0.1264,3960.3,3960.1,1e-08]
[1754669682007,0.93,3960.2,3960.1,1e-08]
[1754669683809,3.941,3960.2,3960.1,1e-08]
[1754669687295,7.80286499,3960.2,3960.1,1e-08]
[1754669688721,2.095428,3960.2,3960.1,1e-08]
[1754669688901,4.34774,3960.2,3960.1,1e-08]
[1754669689620,7.80286499,3960.2,3960.1,1e-08]
[1754669693829,8.56160099,3960.2,3960.1,1e-08]
[1754669697124,9.10583161,3960.2,3960.1,1e-08]
[1754669698898,8.17583161,3960.2,3960.1,1e-08]
[1754669699132,4.23483161,3960.2,3960.1,1e-08]
[1754669699298,0.758736,3960.2,3960.1,1e-08]
[1754669699497,4.697736,3960.2,3960.1,1e-08]
[1754669699734,7.22286099,3960.2,3960.1,1e-08]
[1754669699947,0.1264,3960.3,3960.1,1e-08]
[1754669700101,3.939,3960.2,3960.1,1e-08]
[1754669700306,0.1264,3960.3,3960.1,1e-08]
[1754669700545,4.0654,3960.2,3960.1,0.91040001]
[1754669700761,4.0654,3960.2,3960.1,1e-08]
[1754669701045,4.0654,3960.2,3960.1,3.43558876]
[1754669701407,4.0654,3960.2,3960.1,0.91040001]
[1754669701602,3.939,3960.2,3960.1,0.91040001]
[1754669702106,3.939,3960.2,3960.1,0.43720001]
[1754669702318,3.939,3960.2,3960.1,1e-08]
[1754669704166,8.09340502,3960.2,3960.1,1e-08]
[1754669704317,8.64340502,3960.2,3960.1,1e-08]
[1754669704663,12.40217102,3960.2,3960.1,1e-08]
[1754669704861,12.94633893,3960.2,3960.1,1e-08]
[1754669705226,2.52538006,3959.8,3959.7,0.001]
[1754669705542,6.77191807,3959.8,3959.7,0.001]
[1754669705746,6.89831807,3959.8,3959.7,0.001]
[1754669705983,7.82261807,3959.8,3959.7,0.001]
[1754669706171,7.35771807,3959.8,3959.7,0.001]
[1754669706336,6.89831807,3959.8,3959.7,0.001]
[1754669706521,0.43393801,3959.8,3959.7,0.001]
[1754669706724,4.0654,3959.8,3959.7,0.001]
[1754669706923,4.0654,3959.8,3959.7,0.4382]
[1754669707133,0.1264,3959.8,3959.7,0.9114]
[1754669707373,4.0654,3959.8,3959.7,0.001]
[1754669708059,6.59078006,3959.8,3959.7,0.001]
[1754669708261,4.72446968,3959.8,3959.7,0.001]
[1754669708429,8.17414974,3959.8,3959.7,0.001]
[1754669709229,8.72414974,3959.8,3959.7,0.001]
[1754669709428,8.82533174,3959.8,3959.7,0.001]
[1754669710063,9.37003059,3959.8,3959.7,0.001]
[1754669710359,9.60640032,3959.8,3959.7,0.001]
[1754669710740,8.13110032,3959.8,3959.7,0.001]
[1754669711068,9.05540032,3959.8,3959.7,0.001]
[1754669711970,8.13110032,3959.8,3959.7,0.001]
[1754669712147,3.95673059,3959.8,3959.7,0.001]
[1754669712474,7.35003174,3959.8,3959.7,0.001]
[1754669712635,7.89473059,3959.8,3959.7,0.001]
[1754669713340,8.81903059,3959.8,3959.7,0.001]
[1754669717365,3.95673059,3959.8,3959.7,0.001]
[1754669717666,7.37527422,3959.8,3959.7,0.001]
[1754669717853,7.89473059,3959.8,3959.7,0.001]
[1754669720985,7.89373059,3959.8,3959.7,0.001]
[1754669722140,9.36803059,3959.8,3959.7,0.001]
[1754669722654,9.74570875,3959.8,3959.7,0.001]
[1754669723768,9.508913,3959.8,3959.7,0.001]
[1754669723948,9.74498223,3959.8,3959.7,0.001]
[1754669725296,5.80798223,3959.8,3959.7,0.001]
[1754669725458,11.82068223,3959.8,3959.7,0.001]
[1754669725965,12.50053588,3959.8,3959.7,0.001]
[1754669726173,12.96593588,3959.8,3959.7,0.001]
[1754669726484,13.45313588,3959.8,3959.7,0.001]
[1754669726680,7.88368223,3959.8,3959.7,0.001]
[1754669726988,10.89298286,3959.8,3959.7,0.001]
[1754669727756,12.39558286,3959.8,3959.7,0.001]
[1754669727961,12.63164625,3959.8,3959.7,0.001]
[1754669728520,13.45314512,3959.8,3959.7,0.001]
[1754669728706,12.77329147,3959.8,3959.7,0.001]
[1754669729496,0.55,3959.2,3957.6,0.4709]
[1754669729697,2.52636234,3958.3,3958.1,0.5109]
[1754669730000,4.0624,3958.2,3958.1,0.5109]
[1754669730355,4.0624,3958.2,3957.4,0.1264]
[1754669730356,4.0624,3958.2,3957.1,0.04]
[1754669730562,0.1264,3957.4,3957.2,0.9659]
[1754669730859,3.936,3957.3,3957.2,0.495]
[1754669731360,3.936,3957.3,3957.2,0.9659]
[1754669731765,3.936,3957.3,3957.2,3.49293932]
[1754669731967,0.1264,3957.4,3957.3,2.52697546]
[1754669732162,0.67977961,3958.6,3957.3,2.52697546]
[1754669732163,0.54325109,3958.3,3957.4,2.52687318]
[1754669732385,0.1264,3958.2,3958.1,2.52646471]
[1754669732585,0.758949,3959.0,3958.1,13.83784961]
[1754669732888,3.936,3959.2,3959.0,2.52589037]
[1754669733089,0.1264,3959.1,3958.6,0.4709]
[1754669733286,3.936,3959.2,3958.7,0.4709]
[1754669733482,4.58217261,3959.2,3958.7,0.9659]
[1754669733688,0.1264,3958.8,3958.7,0.495]
[1754669734012,4.0624,3958.8,3958.7,0.495]
[1754669734214,4.0624,3958.8,3958.0,2.52648473]
[1754669734420,0.1264,3958.6,3958.1,0.4709]
[1754669734619,3.936,3958.5,3958.2,3.02136113]
[1754669734786,4.3296,3958.4,3958.3,0.9659]
[1754669735140,4.0624,3958.4,3958.3,0.9659]
[1754669735297,0.55,3958.3,3957.5,0.001]
[1754669735487,2.52666162,3957.8,3957.5,0.001]
[1754669735686,1.11896651,3958.3,3957.5,0.001]
[1754669735687,3.936,3957.7,3957.5,0.001]
[1754669736321,2.5267839,3957.6,3957.5,0.001]
[1754669736524,3.42572848,3957.6,3957.5,0.001]
[1754669737596,0.89894458,3957.6,3957.5,0.001]
[1754669737802,2.5267839,3957.6,3957.5,0.001]
[1754669739221,6.46272449,3957.7,3957.5,0.001]
[1754669739396,3.936,3957.7,3957.5,0.4719]
[1754669739601,1.0372,3958.3,3957.5,0.4719]
[1754669739602,3.936,3957.6,3957.5,0.4719]
[1754669739808,3.936,3957.6,3957.5,0.001]
[1754669740617,3.936,3957.6,3957.5,0.4719]
[1754669741025,3.936,3957.6,3957.5,0.9669]
[1754669741202,3.936,3957.6,3957.5,3.49374775]
[1754669741506,3.936,3957.7,3957.6,2.5267839]
[1754669741697,3.936,3957.9,3957.7,2.52672006]
[1754669742122,3.936,3957.9,3957.5,2.87722149]
[1754669742123,3.936,3957.9,3957.8,3.49255622]
[1754669742321,3.936,3958.0,3957.8,3.49255622]
[1754669742523,3.936,3958.0,3957.9,0.9659]
[1754669742937,3.936,3958.0,3957.5,0.35037478]
[1754669743142,3.936,3958.0,3957.5,0.001]
[1754669743500,0.02524248,3957.9,3957.5,0.001]
[1754669743718,7.1087775,3958.0,3957.5,0.001]
[1754669744008,2.52672178,3957.7,3957.5,0.001]
[1754669744336,6.4627839,3957.6,3957.5,0.001]
[1754669744511,3.936,3957.6,3957.5,0.001]
[1754669745317,4.0624,3957.6,3957.5,0.001]
[1754669746204,6.9954239,3957.6,3957.5,0.001]
[1754669746636,4.46864,3957.6,3957.5,0.001]
[1754669746841,6.9954239,3957.6,3957.5,0.001]
[1754669747411,7.4608239,3957.6,3957.5,0.001]
[1754669747607,7.9480239,3957.6,3957.5,0.001]
[1754669749738,12.04137763,3957.6,3957.5,0.001]
[1754669749947,12.27719725,3957.6,3957.5,0.001]
[1754669750115,8.34120886,3957.6,3957.5,0.001]
[1754669750311,12.04037763,3957.6,3957.5,0.001]
[1754669751460,12.04037763,3957.6,3957.1,0.04]
[1754669751461,3.07703932,3957.2,3957.1,1e-08]
[1754669751754,3.07767807,3956.2,3956.1,0.04]
[1754669752052,10.16432055,3956.2,3956.1,0.04]
[1754669752217,10.68211848,3956.2,3956.1,0.04]
[1754669752417,11.63471848,3956.2,3956.1,0.04]
[1754669752627,13.05095002,3956.2,3956.1,0.04]
[1754669752839,2.52831715,3955.2,3955.1,0.04]
[1754669753059,4.0614,3955.2,3955.1,0.04]
[1754669753648,3.67889624,3956.4,3955.1,1.0059]
[1754669753824,3.4872,3956.5,3955.1,0.04]
[1754669753825,6.46274196,3956.1,3955.1,0.04]
[1754669754023,3.935,3956.1,3955.1,0.5109]
[1754669754234,2.52787124,3955.9,3955.1,0.5087]
[1754669754446,6.4629419,3955.8,3955.2,0.4839]
[1754669754642,3.935,3955.7,3955.3,2.52825322]
[1754669754963,3.936,3955.6,3955.4,3.48074217]
[1754669755169,3.936,3955.5,3955.1,0.04]
[1754669755350,0.3936,3955.6,3955.1,0.04]
[1754669755666,0.3936,3955.6,3955.2,0.4687]
[1754669755667,3.936,3955.5,3955.2,0.4687]
[1754669755818,3.936,3955.5,3955.2,0.9526]
[1754669756249,6.46414105,3955.5,3955.1,0.04]
[1754669756623,2.52820096,3955.4,3955.1,0.04]
[1754669757963,2.52739672,3956.7,3955.2,0.9526]
[1754669758182,2.52781943,3956.0,3955.3,2.52824118]
[1754669758323,3.936,3955.9,3955.3,0.4687]
[1754669758525,6.46391722,3955.9,3955.3,0.4687]
[1754669758940,1.06552691,3956.4,3955.3,0.4687]
[1754669759150,2.52775521,3956.1,3955.3,2.99690363]
[1754669759375,6.46381608,3956.0,3955.3,0.4687]
[1754669759668,3.936,3956.0,3955.3,0.4687]
[1754669760252,0.75545246,3956.1,3955.3,0.4687]
[1754669760555,3.936,3955.9,3955.4,2.52818931]
[1754669760752,3.936,3955.9,3955.4,0.9526]
[1754669760958,3.936,3955.9,3955.1,0.04]
[1754669760959,3.936,3955.9,3955.1,0.5087]
[1754669761156,3.936,3955.9,3955.2,0.4687]
[1754669761369,3.936,3955.9,3955.3,2.52825322]
[1754669761524,2.528012,3955.7,3955.2,0.4687]
[1754669761725,3.936,3955.6,3955.2,2.52831457]
[1754669762365,3.936,3955.6,3955.1,0.04]
[1754669762548,3.936,3955.6,3955.1,0.9926]
[1754669762754,3.936,3955.6,3955.4,2.52817907]
[1754669762960,4.53730341,3956.4,3955.4,2.99687907]
[1754669763159,2.52774916,3956.1,3955.4,2.99687907]
[1754669763361,3.936,3956.0,3955.4,0.4687]
[1754669763565,1.46159034,3956.3,3955.4,0.4687]
[1754669763745,3.936,3956.2,3955.7,2.5279477]
[1754669763945,3.936,3956.2,3955.5,0.02528125]
[1754669763946,0.4839,3956.4,3955.8,3.48052928]
[1754669764169,0.1264,3956.1,3955.8,0.9526]
[1754669764470,3.936,3956.0,3955.8,0.9526]
[1754669764675,3.936,3956.0,3955.8,3.48048398]
[1754669764839,0.1264,3956.1,3956.0,2.52780586]
[1754669765039,3.936,3956.1,3955.9,3.48046264]
[1754669765366,3.936,3956.1,3956.0,2.99650586]
[1754669766151,0.1264,3956.2,3956.1,2.52774196]
[1754669766470,4.0624,3956.2,3956.1,3.48034196]
[1754669767574,4.0624,3956.2,3956.1,2.99644196]
[1754669767873,4.0624,3956.2,3956.1,2.52774196]
[1754669768462,0.1264,3956.2,3956.1,2.52774196]
[1754669768977,4.0624,3956.2,3956.1,2.52774196]
[1754669769341,1.13919624,3957.5,3956.1,4.50503101]
[1754669769546,0.1264,3957.0,3956.4,12.87194961]
[1754669769747,3.936,3956.9,3956.8,2.52726345]
[1754669770156,3.936,3956.9,3956.6,2.52740333]
[1754669770447,3.936,3956.9,3956.6,2.99611817]
[1754669770647,3.936,3956.8,3955.8,3.0]
[1754669770868,0.1264,3956.6,3956.0,2.65414294]
[1754669771075,0.1264,3956.6,3956.1,2.52774196]
[1754669771275,0.1264,3956.6,3956.0,2.65418623]
[1754669771479,6.46331819,3956.8,3955.9,2.52785362]
[1754669771675,6.46331819,3956.8,3955.7,2.65434506]
[1754669771676,0.1264,3956.2,3955.7,2.65434506]
[1754669771879,3.936,3956.1,3955.8,2.52791813]
[1754669772070,3.936,3956.1,3955.7,2.65437372]
[1754669772447,4.3963,3956.1,3955.3,0.001]
[1754669772861,0.1264,3955.6,3955.3,0.001]
[1754669773060,3.936,3955.5,3955.4,2.52818931]
[1754669773889,0.1264,3955.6,3955.5,2.52812539]
[1754669774192,4.0624,3955.6,3955.5,3.48072539]
[1754669774403,3.935,3955.6,3955.5,5.49531182]
[1754669775055,3.935,3955.6,3955.5,3.60712539]
[1754669775395,3.935,3955.6,3955.5,3.12322539]
[1754669775578,3.935,3955.6,3955.5,2.52812539]
[1754669775779,0.1264,3956.1,3955.5,0.4687]
[1754669776003,3.936,3956.0,3955.9,15.39981937]
[1754669776292,0.54270689,3956.9,3955.9,15.87013745]
[1754669776593,3.935,3956.5,3956.4,15.3994999]
[1754669776885,3.935,3956.5,3956.4,16.4784999]
[1754669777272,0.1264,3956.9,3956.4,16.4784999]
[1754669777273,0.1264,3956.9,3956.8,2.52729478]
[1754669777480,3.935,3956.9,3956.8,2.52729478]
[1754669777692,0.54270689,3957.7,3957.2,2.52697692]
[1754669777986,3.20546797,3958.0,3957.2,2.52697692]
[1754669777987,0.1264,3957.6,3957.2,2.52703932]
[1754669778198,3.935,3957.5,3957.4,15.39886121]
[1754669778509,3.935,3957.6,3957.5,2.52684775]
[1754669778988,3.935,3957.6,3957.5,3.47944775]
[1754669780287,3.935,3957.6,3957.5,2.99554775]
[1754669781393,3.935,3957.6,3957.5,2.52684775]
[1754669782091,3.935,3957.6,3957.5,2.99554775]
[1754669782386,3.935,3957.6,3957.5,3.47944775]
[1754669782588,0.1264,3957.9,3957.6,2.52673688]
[1754669782766,0.1284,3958.1,3957.8,2.5266346]
[1754669783203,0.1284,3958.1,3957.9,2.52659186]
[1754669783774,0.1284,3958.1,3958.0,2.52652854]
[1754669784078,0.002,3958.2,3958.1,2.52646471]
[1754669784279,0.002,3958.2,3958.1,3.46526471]
[1754669784478,0.002,3958.2,3958.1,5.651639]
[1754669784862,0.04,3958.4,3958.3,2.52633706]
[1754669785282,0.04,3958.4,3958.3,3.59153706]
[1754669785482,0.04,3958.4,3958.3,6.61680043]
[1754669785685,0.002,3958.8,3958.7,2.52608179]
[1754669786000,0.002,3958.8,3958.7,15.90325569]
[1754669786366,0.002,3958.8,3958.7,16.02965569]
[1754669786566,0.002,3958.8,3958.1,5.18637429]
[1754669786773,0.002,3958.8,3958.3,0.1264]
[1754669787098,0.002,3958.8,3958.6,2.52612824]
[1754669787286,0.002,3958.8,3958.7,2.52608179]
[1754669787878,0.002,3958.8,3958.6,2.52612374]
[1754669788193,0.002,3958.8,3958.7,2.52608179]
[1754669788393,0.002,3958.8,3958.4,12.87194961]
[1754669788394,0.002,3958.8,3958.6,2.52613131]
[1754669788657,0.002,3958.8,3958.2,12.99834961]
[1754669788792,0.1264,3958.6,3958.5,2.52620942]
[1754669791264,0.1264,3958.6,3958.2,12.87194961]
[1754669791464,0.1264,3958.6,3958.5,2.52620942]
[1754669792363,0.1264,3958.6,3958.3,3.0]
[1754669792782,0.1264,3958.6,3958.5,2.52620942]
[1754669793179,0.002,3958.8,3958.7,2.52608179]
[1754669793418,0.002,3958.8,3958.7,15.3980314]
[1754669794907,0.002,3958.8,3958.7,18.23577548]
[1754669795613,0.002,3958.8,3958.7,17.74907548]
[1754669796320,0.002,3958.8,3958.7,18.23577548]
[1754669796637,0.002,3958.8,3958.7,18.36217548]
[1754669796811,0.002,3959.3,3959.2,5.52576278]
[1754669797124,0.9293,3960.2,3959.7,2.52544384]
[1754669797125,1.36449513,3960.1,3959.7,2.52544384]
[1754669797434,0.2495,3959.8,3959.7,15.39739345]
[1754669798533,1.1768,3959.8,3959.7,15.39739345]
[1754669798744,0.2495,3959.8,3959.7,15.39739345]
[1754669800114,0.042,3960.4,3959.7,15.39739345]
[1754669800115,0.042,3960.4,3959.9,2.52531629]
[1754669800442,0.042,3960.4,3960.3,2.52506123]
[1754669800618,0.042,3960.4,3960.3,6.58346123]
[1754669800818,0.042,3960.4,3960.3,7.52226123]
[1754669801218,0.002,3961.0,3960.5,2.52493372]
[1754669801433,0.002,3961.0,3960.5,5.65133372]
[1754669801726,0.002,3961.0,3960.5,8.0023778]
[1754669801936,0.002,3961.0,3960.7,2.52480622]
[1754669802110,0.002,3961.0,3960.7,18.39675583]
[1754669802311,0.002,3961.0,3960.7,18.52315583]
[1754669804265,0.002,3961.0,3960.7,15.52315583]
[1754669804846,0.002,3961.0,3960.7,16.46195583]
[1754669805032,0.002,3961.0,3960.7,17.51970544]
[1754669805361,0.002,3961.0,3960.2,3.931]
[1754669805562,0.9273,3960.7,3960.4,2.5249674]
[1754669805876,0.002,3961.0,3959.8,3.93]
[1754669805877,0.95254248,3960.6,3959.8,3.93]
[1754669806157,0.1264,3960.3,3959.8,3.93]
[1754669806359,0.9273,3960.2,3959.8,2.52538006]
[1754669806560,0.9273,3960.2,3960.1,2.52518734]
[1754669806764,0.9273,3960.2,3959.8,2.5253287]
[1754669806931,0.4678,3960.2,3959.9,2.5253085]
[1754669807138,0.4595,3960.1,3960.0,2.52525252]
[1754669807349,0.4678,3960.2,3960.1,2.52518875]
[1754669807532,0.4678,3960.2,3960.0,2.52523136]
[1754669807845,0.1264,3960.3,3960.1,2.52516058]
[1754669808158,0.1264,3960.3,3960.1,15.39712747]
[1754669808360,0.1264,3960.3,3960.2,2.52512499]
[1754669808575,3.93,3960.7,3960.5,2.52490312]
[1754669808866,0.1264,3960.6,3960.2,2.52506972]
[1754669809066,0.1264,3960.6,3960.1,15.3971339]
[1754669809272,0.002,3960.8,3960.5,2.52493372]
[1754669809456,0.54145794,3961.2,3961.1,2.52455126]
[1754669809767,0.1684,3961.4,3961.1,15.39650087]
[1754669809958,0.9273,3961.3,3961.1,2.52450214]
[1754669810570,0.1684,3961.4,3961.3,2.5244238]
[1754669810865,0.1684,3961.4,3961.3,12.87194961]
[1754669812150,0.1684,3961.4,3961.3,15.39637341]
[1754669812751,0.1684,3961.4,3961.3,12.87194961]
[1754669813251,0.1684,3961.4,3961.3,15.39637341]
[1754669813976,0.042,3961.4,3961.3,15.39637341]
[1754669814480,0.1284,3961.9,3961.4,2.52436007]
[1754669814655,0.002,3961.9,3961.8,15.39605481]
[1754669817582,0.002,3961.9,3961.8,16.35245481]
[1754669818078,0.002,3962.0,3961.9,2.52404149]
[1754669818278,0.002,3962.0,3961.9,6.45204149]
[1754669818479,0.002,3962.0,3961.9,0.1264]
[1754669818678,0.002,3962.0,3961.7,12.87194961]
[1754669818893,0.002,3962.0,3961.8,3.928]
[1754669819096,0.002,3962.0,3961.7,12.87194961]
[1754669819295,0.932,3961.9,3961.5,3.928]
[1754669819497,0.1264,3961.7,3961.5,3.928]
[1754669820099,1.0584,3961.7,3961.4,2.52436007]
[1754669820268,0.932,3961.6,3961.2,16.79994961]
[1754669820464,0.932,3961.6,3960.9,3.928]
[1754669820465,0.1264,3961.3,3960.9,3.928]
[1754669820684,0.1264,3961.1,3960.8,3.928]
[1754669820891,0.5619,3961.1,3960.8,3.928]
[1754669821097,1.0584,3961.1,3960.8,3.928]
[1754669821400,0.932,3961.0,3959.8,12.87194961]
[1754669821600,0.1264,3960.6,3959.6,12.87194961]
[1754669821775,0.1264,3960.0,3959.7,2.52544384]
[1754669822097,1.0584,3960.0,3959.7,2.52543411]
[1754669822295,0.5619,3960.0,3959.7,2.52543411]
[1754669822600,0.4355,3960.0,3959.6,16.79994961]
[1754669822775,0.1264,3960.1,3959.7,4.3947]
[1754669822968,0.1264,3960.3,3960.0,12.87194961]
[1754669823170,0.1264,3960.3,3960.1,2.52517592]
[1754669823605,0.4965,3960.6,3960.5,2.52490831]
[1754669823606,0.1264,3960.6,3960.5,2.52490831]
[1754669823786,0.1264,3960.8,3960.7,2.52480622]
[1754669823989,0.54195402,3961.2,3961.1,2.52455126]
[1754669824179,0.54195402,3961.4,3961.3,2.5244238]
[1754669824502,0.1264,3961.7,3961.4,2.52435011]
[1754669824796,0.1264,3961.7,3960.5,19.32488049]
[1754669824797,2.65073971,3961.5,3960.5,19.32488049]
[1754669825019,2.65073971,3961.5,3960.7,2.52475265]
[1754669825020,0.1264,3961.0,3960.7,2.52475265]
[1754669825703,1.0584,3961.0,3960.5,19.32484314]
[1754669825870,0.4355,3960.9,3960.5,19.32484314]
[1754669826070,0.932,3960.9,3960.6,2.52486406]
[1754669826877,0.1264,3961.0,3960.8,2.52474247]
[1754669827114,0.1264,3961.0,3960.0,0.001]
[1754669827298,0.1264,3960.6,3960.0,2.52625114]
[1754669827617,0.1264,3960.1,3960.0,0.001]
[1754669828212,0.1264,3960.1,3960.0,2.52625252]
[1754669828388,0.1264,3960.1,3960.0,4.31861089]
[1754669828587,3.928,3960.8,3960.0,1.79335837]
[1754669828788,0.1264,3960.6,3960.1,2.52518875]
[1754669828991,0.1264,3960.6,3960.4,12.87194961]
[1754669829220,4.47132872,3961.3,3960.7,2.52477858]
[1754669829384,0.1264,3961.0,3960.8,12.87194961]
[1754669829578,0.1264,3961.0,3960.9,2.52467873]
[1754669830180,0.1264,3961.0,3960.8,12.87194961]
[1754669830513,0.1264,3961.0,3960.3,12.99834961]
[1754669830514,0.5619,3961.0,3960.3,12.99834961]
[1754669830685,0.5619,3961.0,3960.0,2.52622937]
[1754669830686,3.4566949,3960.9,3960.2,2.52511732]
[1754669830881,0.1264,3960.3,3960.0,0.001]
[1754669831116,0.1264,3960.3,3960.1,2.52518875]
[1754669831303,0.932,3960.2,3960.0,0.001]
[1754669831491,0.1264,3960.1,3960.0,2.52625252]
[1754669831692,0.1264,3960.1,3960.0,0.001]
[1754669831892,0.1264,3960.1,3960.0,2.52625252]
[1754669833099,0.1264,3960.1,3960.0,6.45425252]
[1754669834011,0.1264,3960.1,3960.0,9.40630366]
[1754669834792,0.4355,3961.1,3960.7,2.52476393]
[1754669835194,0.1264,3960.8,3960.7,2.52476393]
[1754669835700,0.1264,3960.9,3960.6,2.52486693]
[1754669835894,0.1264,3960.9,3960.8,2.52473942]
[1754669836094,0.1264,3961.0,3960.9,2.52467873]
[1754669836794,0.1264,3961.6,3961.0,2.52461499]
[1754669837004,0.1264,3961.7,3961.2,10.51020064]
[1754669837211,0.1264,3961.7,3961.6,2.52423263]
[1754669837938,0.1284,3962.0,3961.5,0.1264]
[1754669838231,0.002,3962.0,3961.9,2.52404149]
[1754669840098,0.002,3962.0,3961.8,2.52408854]
[1754669840299,0.002,3962.0,3961.5,7.04436547]
[1754669840533,0.002,3962.0,3961.8,2.52404248]
[1754669840720,0.002,3962.0,3961.5,6.57768861]
[1754669840917,0.46274248,3962.0,3961.5,0.1264]
[1754669841227,0.1264,3961.6,3961.1,3.927]
[1754669841426,0.1264,3961.6,3961.0,0.1264]
[1754669841427,0.932,3961.5,3961.0,6.45156407]
[1754669841628,0.1264,3961.3,3961.0,2.52456407]
[1754669841792,1.0584,3961.3,3960.9,2.52466192]
[1754669842197,1.0584,3961.3,3961.0,2.52459575]
[1754669842198,0.4355,3961.2,3961.0,2.52459575]
[1754669842699,0.4355,3961.2,3961.0,2.52457991]
[1754669843029,0.6229,3961.3,3961.0,2.52457991]
[1754669843343,0.6229,3961.3,3960.7,3.927]
[1754669843344,0.1264,3961.3,3960.7,3.927]
[1754669843644,0.1264,3961.3,3961.2,2.52448752]
[1754669844829,0.1264,3961.5,3961.4,2.52434285]
[1754669845042,3.927,3961.8,3961.6,2.52416963]
[1754669845043,0.1264,3961.7,3961.6,2.52416963]
[1754669845233,0.1264,3961.7,3961.2,10.51020064]
[1754669845414,0.5701,3961.7,3961.3,4.31]
[1754669845727,0.5721,3961.7,3961.4,2.52435175]
[1754669846031,0.5721,3961.7,3961.3,2.52441119]
[1754669846328,0.5721,3961.7,3961.4,2.52434318]
[1754669846532,0.5721,3961.7,3961.3,2.52441431]
[1754669846700,0.5721,3961.7,3961.4,2.52434728]
[1754669847026,0.1284,3961.7,3961.6,2.52423263]
[1754669847226,0.1284,3961.7,3961.6,2.96743263]
[1754669847432,0.002,3961.7,3961.6,3.9766119]
[1754669847629,0.002,3961.7,3961.6,4.00185422]
[1754669847934,0.002,3961.7,3961.6,3.9766119]
[1754669848308,0.002,3961.7,3961.6,4.12825422]
[1754669848624,0.002,3961.7,3961.6,7.1030119]
[1754669850945,0.002,3962.0,3961.9,2.52404149]
[1754669851145,0.002,3962.0,3961.9,18.17535951]
[1754669851350,0.002,3962.0,3961.9,18.30175951]
[1754669851549,0.002,3962.0,3961.9,19.20495951]
[1754669854628,0.002,3962.0,3961.9,21.54145086]
[1754669855854,0.04,3962.4,3961.9,21.54145086]
[1754669856032,0.04,3962.4,3962.3,2.52378668]
[1754669856228,0.002,3963.0,3962.4,2.52372299]
[1754669856442,0.002,3963.0,3962.6,2.52359561]
[1754669856672,0.002,3963.0,3962.6,6.44859561]
[1754669856873,0.002,3963.0,3962.6,6.57499561]
[1754669857273,0.002,3963.1,3962.6,6.57499561]
[1754669857274,0.002,3963.1,3963.0,2.5233409]
[1754669857474,0.002,3963.1,3963.0,15.49643289]
[1754669857974,0.002,3963.1,3963.0,15.93963289]
[1754669858549,0.002,3963.1,3963.0,15.49643289]
[1754669859048,0.002,3963.3,3963.2,2.52321356]
[1754669859262,0.002,3963.3,3963.2,6.44821356]
[1754669859577,0.002,3963.3,3963.2,6.57461356]
[1754669860381,0.002,3963.3,3963.2,2.64961356]
[1754669861379,0.002,3963.3,3963.2,6.57361356]
[1754669861585,0.002,3963.3,3963.2,2.64961356]
[1754669862303,0.002,3963.3,3959.8,3.15794938]
[1754669862304,0.9146,3963.3,3962.3,12.84669199]
[1754669862608,2.52329072,3963.1,3962.4,2.52367075]
[1754669862804,0.34798907,3963.1,3962.6,2.52353456]
[1754669862961,0.34798907,3963.1,3962.8,12.84669199]
[1754669862962,0.4437,3963.1,3962.8,12.84669199]
[1754669863597,0.4709,3963.3,3962.8,12.84669199]
[1754669863598,0.9126,3963.0,3962.8,12.84669199]